[Event "December 12 Early 2023"]
[Site "https://www.chess.com"]
[Date "2023.12.12"]
[Round "9"]
[White "Andreikin, Dmitry"]
[Black "Sarana, Alexey"]
[Result "1/2-1/2"]
[Board "2"]
[TimeControl "180+1"]
[WhiteFideId "4158814"]
[BlackFideId "24133795"]
[WhiteElo "3101"]
[BlackElo "3037"]
[WhiteTeam "FID"]
[BlackTeam "SRB"]
[WhiteClock "0:00:05"]
[BlackClock "0:00:08"]

1. d4 {[%clk 0:03:00]}  Nf6 {[%clk 0:02:59]} 2. c4 {[%clk 0:03:00]}  e6 {[%clk 0:03:00]} 3. Nf3 {[%clk 0:03:00]}  d5 {[%clk 0:03:01]} 4. Bg5 {[%clk 0:03:00]}  Bb4+ {[%clk 0:02:59]} 5. Nc3 {[%clk 0:03:00]}  dxc4 {[%clk 0:03:00]} 6. e4 {[%clk 0:02:59]}  c5 {[%clk 0:03:00]} 7. Bxc4 {[%clk 0:02:57]}  cxd4 {[%clk 0:03:01]} 8. Nxd4 {[%clk 0:02:55]}  Bxc3+ {[%clk 0:03:01]} 9. bxc3 {[%clk 0:02:55]}  Qa5 {[%clk 0:03:02]} 10. Nb5 {[%clk 0:02:36]}  Nxe4 {[%clk 0:03:00]} 11. Qd4 {[%clk 0:02:15]}  O-O {[%clk 0:02:59]} 12. Qxe4 {[%clk 0:02:16]}  a6 {[%clk 0:03:00]} 13. Bd3 {[%clk 0:01:46]}  f5 {[%clk 0:02:59]} 14. Qe2 {[%clk 0:01:46]}  axb5 {[%clk 0:02:59]} 15. O-O {[%clk 0:01:47]}  Nc6 {[%clk 0:02:56]} 16. Bxb5 {[%clk 0:01:33]}  f4 {[%clk 0:02:41]} 17. f3 {[%clk 0:01:02]}  Qxc3 {[%clk 0:02:27]} 18. Rac1 {[%clk 0:00:57]}  Qb4 {[%clk 0:01:28]} 19. Bxc6 {[%clk 0:00:42]}  bxc6 {[%clk 0:01:28]} 20. Rxc6 {[%clk 0:00:41]}  Qd4+ {[%clk 0:01:17]} 21. Qf2 {[%clk 0:00:39]}  Qd7 {[%clk 0:00:59]} 22. Rfc1 {[%clk 0:00:34]}  h6 {[%clk 0:00:49]} 23. Rc7 {[%clk 0:00:19]}  Qd5 {[%clk 0:00:49]} 24. R7c5 {[%clk 0:00:12]}  Qd6 {[%clk 0:00:43]} 25. Bh4 {[%clk 0:00:07]}  Bb7 {[%clk 0:00:38]} 26. Qb2 {[%clk 0:00:05]}  Bd5 {[%clk 0:00:34]} 27. Rc7 {[%clk 0:00:05]}  Rf7 {[%clk 0:00:28]} 28. Rxf7 {[%clk 0:00:04]}  Kxf7 {[%clk 0:00:28]} 29. Rd1 {[%clk 0:00:04]}  Qc7 {[%clk 0:00:20]} 30. Ra1 {[%clk 0:00:04]}  Rb8 {[%clk 0:00:18]} 31. Qd2 {[%clk 0:00:03]}  g5 {[%clk 0:00:14]} 32. Bf2 {[%clk 0:00:03]}  Qc4 {[%clk 0:00:14]} 33. h3 {[%clk 0:00:03]}  Rc8 {[%clk 0:00:14]} 34. a4 {[%clk 0:00:03]}  Qc2 {[%clk 0:00:10]} 35. Qxc2 {[%clk 0:00:03]}  Rxc2 {[%clk 0:00:11]} 36. a5 {[%clk 0:00:03]}  h5 {[%clk 0:00:11]} 37. a6 {[%clk 0:00:03]}  Kg6 {[%clk 0:00:10]} 38. a7 {[%clk 0:00:04]}  Ba8 {[%clk 0:00:10]} 39. Rb1 {[%clk 0:00:04]}  Ra2 {[%clk 0:00:11]} 40. Rb8 {[%clk 0:00:03]}  Bd5 {[%clk 0:00:11]} 41. Rb1 {[%clk 0:00:03]}  Kf5 {[%clk 0:00:09]} 42. Rb8 {[%clk 0:00:03]}  g4 {[%clk 0:00:08]} 43. hxg4+ {[%clk 0:00:03]}  hxg4 {[%clk 0:00:09]} 44. Rf8+ {[%clk 0:00:03]}  Ke5 {[%clk 0:00:09]} 45. fxg4 {[%clk 0:00:03]}  Ra1+ {[%clk 0:00:10]} 46. Kh2 {[%clk 0:00:03]}  Ra2 {[%clk 0:00:11]} 47. Kg1 {[%clk 0:00:04]}  Ra1+ {[%clk 0:00:11]} 48. Kh2 {[%clk 0:00:04]}  Ra2 {[%clk 0:00:08]} 49. Kg1 {[%clk 0:00:05]} 1/2-1/2

[Event "December 12 Early 2023"]
[Site "https://www.chess.com"]
[Date "2023.12.12"]
[Round "9"]
[White "Le, Tuan Minh"]
[Black "Matinian, Nikita"]
[Result "1-0"]
[Board "3"]
[TimeControl "180+1"]
[WhiteFideId "12401153"]
[BlackFideId "24129100"]
[WhiteElo "3082"]
[BlackElo "2782"]
[WhiteTeam "VIE"]
[BlackTeam "FID"]
[WhiteClock "0:01:34"]
[BlackClock "0:00:20"]

1. d4 {[%clk 0:03:00]}  Nf6 {[%clk 0:02:59]} 2. c4 {[%clk 0:02:59]}  g6 {[%clk 0:02:59]} 3. Nf3 {[%clk 0:02:59]}  Bg7 {[%clk 0:03:00]} 4. g3 {[%clk 0:02:59]}  d6 {[%clk 0:02:59]} 5. Bg2 {[%clk 0:02:56]}  O-O {[%clk 0:02:59]} 6. O-O {[%clk 0:02:54]}  c6 {[%clk 0:03:00]} 7. Nc3 {[%clk 0:02:49]}  Bf5 {[%clk 0:03:00]} 8. Re1 {[%clk 0:02:44]}  Ne4 {[%clk 0:02:59]} 9. Qb3 {[%clk 0:02:44]}  Qb6 {[%clk 0:02:59]} 10. Nh4 {[%clk 0:02:44]}  Nxc3 {[%clk 0:02:17]} 11. bxc3 {[%clk 0:02:45]}  Bc8 {[%clk 0:02:07]} 12. Ba3 {[%clk 0:02:44]}  Re8 {[%clk 0:02:04]} 13. e4 {[%clk 0:02:42]}  Nd7 {[%clk 0:02:01]} 14. Nf3 {[%clk 0:02:30]}  c5 {[%clk 0:01:49]} 15. e5 {[%clk 0:02:25]}  dxe5 {[%clk 0:01:47]} 16. dxe5 {[%clk 0:02:24]}  e6 {[%clk 0:01:36]} 17. Rad1 {[%clk 0:02:19]}  Qc7 {[%clk 0:01:34]} 18. Re3 {[%clk 0:01:46]}  Nxe5 {[%clk 0:01:27]} 19. Nxe5 {[%clk 0:01:45]}  Bxe5 {[%clk 0:01:28]} 20. Qb5 {[%clk 0:01:45]}  Rf8 {[%clk 0:01:17]} 21. Qxc5 {[%clk 0:01:43]}  Qxc5 {[%clk 0:01:03]} 22. Bxc5 {[%clk 0:01:44]}  Bc7 {[%clk 0:01:03]} 23. Bxf8 {[%clk 0:01:41]}  Kxf8 {[%clk 0:01:04]} 24. c5 {[%clk 0:01:42]}  Rb8 {[%clk 0:01:04]} 25. c4 {[%clk 0:01:36]}  Ke7 {[%clk 0:01:04]} 26. Ra3 {[%clk 0:01:36]}  a5 {[%clk 0:00:59]} 27. Rb1 {[%clk 0:01:34]}  b6 {[%clk 0:00:33]} 28. Rab3 {[%clk 0:01:33]}  a4 {[%clk 0:00:20]} 29. Rb4 {[%clk 0:01:34]} 1-0

[Event "December 12 Early 2023"]
[Site "https://www.chess.com"]
[Date "2023.12.12"]
[Round "9"]
[White "Duda, Jan-Krzysztof"]
[Black "Sychev, Klementy"]
[Result "1-0"]
[Board "5"]
[TimeControl "180+1"]
[WhiteFideId "1170546"]
[BlackFideId "4114060"]
[WhiteElo "3054"]
[BlackElo "2943"]
[WhiteTeam "POL"]
[BlackTeam "FID"]
[WhiteClock "0:00:03"]
[BlackClock "0:00:00"]

1. e4 {[%clk 0:03:00]}  d5 {[%clk 0:02:50]} 2. exd5 {[%clk 0:02:58]}  Qxd5 {[%clk 0:02:51]} 3. Nc3 {[%clk 0:02:58]}  Qa5 {[%clk 0:02:52]} 4. d4 {[%clk 0:02:56]}  Nf6 {[%clk 0:02:51]} 5. Bc4 {[%clk 0:02:52]}  Bg4 {[%clk 0:02:49]} 6. f3 {[%clk 0:02:48]}  Bd7 {[%clk 0:02:47]} 7. Ne2 {[%clk 0:02:43]}  Nc6 {[%clk 0:02:22]} 8. Bd2 {[%clk 0:02:32]}  O-O-O {[%clk 0:02:17]} 9. Nd5 {[%clk 0:02:16]}  Qa4 {[%clk 0:02:16]} 10. Ne3 {[%clk 0:01:45]}  e5 {[%clk 0:02:04]} 11. d5 {[%clk 0:01:03]}  Nd4 {[%clk 0:02:03]} 12. a3 {[%clk 0:00:55]}  Be8 {[%clk 0:01:40]} 13. b3 {[%clk 0:00:54]}  Qd7 {[%clk 0:01:40]} 14. O-O {[%clk 0:00:42]}  Bc5 {[%clk 0:01:40]} 15. Kh1 {[%clk 0:00:42]}  h5 {[%clk 0:01:39]} 16. b4 {[%clk 0:00:39]}  Bd6 {[%clk 0:01:37]} 17. Ng3 {[%clk 0:00:26]}  h4 {[%clk 0:01:35]} 18. Ne4 {[%clk 0:00:26]}  Nh5 {[%clk 0:01:27]} 19. Nxd6+ {[%clk 0:00:13]}  Qxd6 {[%clk 0:01:27]} 20. c3 {[%clk 0:00:14]}  Ng3+ {[%clk 0:01:18]} 21. Kg1 {[%clk 0:00:14]}  Qb6 {[%clk 0:00:57]} 22. cxd4 {[%clk 0:00:09]}  exd4 {[%clk 0:00:57]} 23. Ng4 {[%clk 0:00:07]}  f5 {[%clk 0:00:47]} 24. Nf2 {[%clk 0:00:06]}  Nxf1 {[%clk 0:00:35]} 25. Qxf1 {[%clk 0:00:07]}  Bf7 {[%clk 0:00:36]} 26. Qd3 {[%clk 0:00:07]}  g6 {[%clk 0:00:34]} 27. Bg5 {[%clk 0:00:05]}  Rd7 {[%clk 0:00:30]} 28. Re1 {[%clk 0:00:05]}  Bxd5 {[%clk 0:00:29]} 29. Bxd5 {[%clk 0:00:05]}  Rxd5 {[%clk 0:00:30]} 30. h3 {[%clk 0:00:05]}  a6 {[%clk 0:00:24]} 31. Qc4 {[%clk 0:00:05]}  Qb5 {[%clk 0:00:11]} 32. Qxb5 {[%clk 0:00:04]}  Rxb5 {[%clk 0:00:11]} 33. Nd3 {[%clk 0:00:05]}  a5 {[%clk 0:00:11]} 34. Bf6 {[%clk 0:00:05]}  Rf8 {[%clk 0:00:09]} 35. Bxh4 {[%clk 0:00:05]}  axb4 {[%clk 0:00:08]} 36. axb4 {[%clk 0:00:06]}  b6 {[%clk 0:00:09]} 37. Rc1 {[%clk 0:00:05]}  Kb7 {[%clk 0:00:08]} 38. Bg3 {[%clk 0:00:03]}  Rf7 {[%clk 0:00:07]} 39. Rc4 {[%clk 0:00:03]}  Rd5 {[%clk 0:00:06]} 40. h4 {[%clk 0:00:03]}  Re7 {[%clk 0:00:05]} 41. Bf4 {[%clk 0:00:02]}  Re2 {[%clk 0:00:05]} 42. Rxc7+ {[%clk 0:00:02]}  Ka6 {[%clk 0:00:05]} 43. Bg5 {[%clk 0:00:02]}  Ra2 {[%clk 0:00:03]} 44. Rc6 {[%clk 0:00:01]}  Kb5 {[%clk 0:00:03]} 45. Rxg6 {[%clk 0:00:02]}  Kc4 {[%clk 0:00:03]} 46. Nf4 {[%clk 0:00:02]}  Rb5 {[%clk 0:00:03]} 47. Rc6+ {[%clk 0:00:03]}  Kb3 {[%clk 0:00:03]} 48. h5 {[%clk 0:00:03]}  Ra1+ {[%clk 0:00:02]} 49. Kh2 {[%clk 0:00:03]}  Rxb4 {[%clk 0:00:02]} 50. h6 {[%clk 0:00:03]}  Ra7 {[%clk 0:00:02]} 51. Bf6 {[%clk 0:00:04]}  b5 {[%clk 0:00:02]} 52. Rd6 {[%clk 0:00:03]}  d3 {[%clk 0:00:00]} 53. Nxd3 {[%clk 0:00:03]} 1-0

[Event "December 12 Early 2023"]
[Site "https://www.chess.com"]
[Date "2023.12.12"]
[Round "9"]
[White "Xiong, Jeffery"]
[Black "Lagarde, Maxime"]
[Result "1-0"]
[Board "7"]
[TimeControl "180+1"]
[WhiteFideId "2047640"]
[BlackFideId "662399"]
[WhiteElo "3046"]
[BlackElo "2808"]
[WhiteTeam "USA"]
[BlackTeam "FRA"]
[WhiteClock "0:01:10"]
[BlackClock "0:00:00"]

1. Nf3 {[%clk 0:03:00]}  Nc6 {[%clk 0:02:59]} 2. e4 {[%clk 0:03:00]}  e5 {[%clk 0:02:59]} 3. Nc3 {[%clk 0:03:00]}  Nf6 {[%clk 0:02:56]} 4. d4 {[%clk 0:03:01]}  exd4 {[%clk 0:02:56]} 5. Nxd4 {[%clk 0:03:01]}  Bc5 {[%clk 0:02:56]} 6. Be3 {[%clk 0:02:59]}  Bb4 {[%clk 0:02:57]} 7. Nxc6 {[%clk 0:02:46]}  bxc6 {[%clk 0:02:58]} 8. Bd3 {[%clk 0:02:46]}  d6 {[%clk 0:02:58]} 9. O-O {[%clk 0:02:45]}  Ng4 {[%clk 0:02:55]} 10. Bd2 {[%clk 0:02:36]}  Qh4 {[%clk 0:02:53]} 11. h3 {[%clk 0:02:35]}  Ne5 {[%clk 0:02:51]} 12. Be2 {[%clk 0:02:00]}  h5 {[%clk 0:02:35]} 13. Qc1 {[%clk 0:01:44]}  f6 {[%clk 0:02:10]} 14. f4 {[%clk 0:01:33]}  Bc5+ {[%clk 0:01:24]} 15. Be3 {[%clk 0:01:25]}  Bxe3+ {[%clk 0:00:51]} 16. Qxe3 {[%clk 0:01:26]}  Nf7 {[%clk 0:00:51]} 17. Bc4 {[%clk 0:01:22]}  Kf8 {[%clk 0:00:43]} 18. Ne2 {[%clk 0:01:22]}  Rh6 {[%clk 0:00:25]} 19. Nd4 {[%clk 0:01:13]}  Rg6 {[%clk 0:00:21]} 20. Kh2 {[%clk 0:01:13]}  d5 {[%clk 0:00:14]} 21. Nf5 {[%clk 0:01:11]}  Bxf5 {[%clk 0:00:11]} 22. exf5 {[%clk 0:01:12]}  Re8 {[%clk 0:00:07]} 23. Qf3 {[%clk 0:01:12]}  Rg5 {[%clk 0:00:00]} 24. Bd3 {[%clk 0:01:10]} 1-0

[Event "December 12 Early 2023"]
[Site "https://www.chess.com"]
[Date "2023.12.12"]
[Round "9"]
[White "Paravyan, David"]
[Black "Tologon tegin, Semetei"]
[Result "1-0"]
[Board "8"]
[TimeControl "180+1"]
[WhiteFideId "4194985"]
[BlackFideId "13800574"]
[WhiteElo "3027"]
[BlackElo "2668"]
[WhiteTeam "FID"]
[BlackTeam "KGZ"]
[WhiteClock "0:00:17"]
[BlackClock "0:00:00"]

1. e4 {[%clk 0:03:00]}  c5 {[%clk 0:02:58]} 2. Nf3 {[%clk 0:03:00]}  Nc6 {[%clk 0:02:58]} 3. Nc3 {[%clk 0:02:59]}  e6 {[%clk 0:02:55]} 4. d4 {[%clk 0:02:59]}  cxd4 {[%clk 0:02:55]} 5. Nxd4 {[%clk 0:03:00]}  Qc7 {[%clk 0:02:56]} 6. Nxc6 {[%clk 0:03:00]}  bxc6 {[%clk 0:02:55]} 7. Bd3 {[%clk 0:03:00]}  d5 {[%clk 0:02:55]} 8. Qe2 {[%clk 0:03:01]}  Nf6 {[%clk 0:02:45]} 9. exd5 {[%clk 0:03:00]}  cxd5 {[%clk 0:02:43]} 10. Nb5 {[%clk 0:03:01]}  Qb8 {[%clk 0:02:20]} 11. g3 {[%clk 0:03:00]}  Bd6 {[%clk 0:02:13]} 12. Nxd6+ {[%clk 0:03:00]}  Qxd6 {[%clk 0:02:12]} 13. Bf4 {[%clk 0:03:00]}  Qe7 {[%clk 0:02:03]} 14. O-O-O {[%clk 0:02:59]}  O-O {[%clk 0:02:01]} 15. g4 {[%clk 0:02:49]}  Bb7 {[%clk 0:01:52]} 16. f3 {[%clk 0:02:44]}  Rfe8 {[%clk 0:01:41]} 17. Rhe1 {[%clk 0:02:37]}  Nd7 {[%clk 0:01:38]} 18. Kb1 {[%clk 0:02:28]}  Nc5 {[%clk 0:01:27]} 19. Bb5 {[%clk 0:02:18]}  Rec8 {[%clk 0:01:24]} 20. Qe5 {[%clk 0:01:51]}  Qd8 {[%clk 0:00:53]} 21. Be3 {[%clk 0:01:27]}  Ba6 {[%clk 0:00:33]} 22. Bxa6 {[%clk 0:01:19]}  Nxa6 {[%clk 0:00:34]} 23. Bd4 {[%clk 0:01:19]}  Qf8 {[%clk 0:00:34]} 24. f4 {[%clk 0:01:18]}  Nb4 {[%clk 0:00:32]} 25. f5 {[%clk 0:01:02]}  Nc6 {[%clk 0:00:31]} 26. Qf4 {[%clk 0:00:57]}  Nxd4 {[%clk 0:00:32]} 27. Qxd4 {[%clk 0:00:57]}  Rc4 {[%clk 0:00:31]} 28. Qe5 {[%clk 0:00:57]}  Re8 {[%clk 0:00:23]} 29. g5 {[%clk 0:00:56]}  Qc5 {[%clk 0:00:19]} 30. c3 {[%clk 0:00:28]}  Qb5 {[%clk 0:00:09]} 31. Rxd5 {[%clk 0:00:27]}  Qb6 {[%clk 0:00:07]} 32. Rd6 {[%clk 0:00:20]}  Qb8 {[%clk 0:00:06]} 33. fxe6 {[%clk 0:00:19]}  fxe6 {[%clk 0:00:05]} 34. Rxe6 {[%clk 0:00:18]}  Qxe5 {[%clk 0:00:05]} 35. Rxe8+ {[%clk 0:00:18]}  Qxe8 {[%clk 0:00:04]} 36. Rxe8+ {[%clk 0:00:19]}  Kf7 {[%clk 0:00:04]} 37. Ra8 {[%clk 0:00:20]}  Rc7 {[%clk 0:00:04]} 38. Rd8 {[%clk 0:00:14]}  Kg6 {[%clk 0:00:04]} 39. Rd5 {[%clk 0:00:14]}  Kh5 {[%clk 0:00:03]} 40. Kc2 {[%clk 0:00:15]}  Kg4 {[%clk 0:00:04]} 41. b4 {[%clk 0:00:13]}  Kh3 {[%clk 0:00:04]} 42. Kb3 {[%clk 0:00:12]}  Kxh2 {[%clk 0:00:05]} 43. c4 {[%clk 0:00:13]}  Kg3 {[%clk 0:00:03]} 44. c5 {[%clk 0:00:13]}  Kg4 {[%clk 0:00:04]} 45. b5 {[%clk 0:00:13]}  h5 {[%clk 0:00:03]} 46. gxh6 {[%clk 0:00:14]}  gxh6 {[%clk 0:00:03]} 47. c6 {[%clk 0:00:14]}  h5 {[%clk 0:00:03]} 48. Rd7 {[%clk 0:00:14]}  Rc8 {[%clk 0:00:02]} 49. Rxa7 {[%clk 0:00:13]}  h4 {[%clk 0:00:02]} 50. Rg7+ {[%clk 0:00:13]}  Kf3 {[%clk 0:00:02]} 51. Rh7 {[%clk 0:00:14]}  Kg3 {[%clk 0:00:02]} 52. a4 {[%clk 0:00:14]}  h3 {[%clk 0:00:03]} 53. Kb4 {[%clk 0:00:15]}  Kg2 {[%clk 0:00:03]} 54. a5 {[%clk 0:00:15]}  h2 {[%clk 0:00:04]} 55. a6 {[%clk 0:00:15]}  h1=Q {[%clk 0:00:04]} 56. Rxh1 {[%clk 0:00:14]}  Kxh1 {[%clk 0:00:05]} 57. a7 {[%clk 0:00:15]}  Kg2 {[%clk 0:00:04]} 58. Kc5 {[%clk 0:00:15]}  Kf3 {[%clk 0:00:05]} 59. b6 {[%clk 0:00:16]}  Ke4 {[%clk 0:00:05]} 60. b7 {[%clk 0:00:16]}  Rh8 {[%clk 0:00:05]} 61. Kb6 {[%clk 0:00:17]}  Kd5 {[%clk 0:00:04]} 62. a8=Q {[%clk 0:00:17]}  Rxa8 {[%clk 0:00:03]} 63. bxa8=Q {[%clk 0:00:18]}  Kd6 {[%clk 0:00:00]} 64. Qd8+ {[%clk 0:00:17]} 1-0

[Event "December 12 Early 2023"]
[Site "https://www.chess.com"]
[Date "2023.12.12"]
[Round "9"]
[White "Pranav, V"]
[Black "Shankland, Sam"]
[Result "1-0"]
[Board "9"]
[TimeControl "180+1"]
[WhiteFideId "25060783"]
[BlackFideId "2004887"]
[WhiteElo "3052"]
[BlackElo "2936"]
[WhiteTeam "IND"]
[BlackTeam "USA"]
[WhiteClock "0:00:04"]
[BlackClock "0:00:37"]

1. e4 {[%clk 0:03:00]}  c5 {[%clk 0:02:58]} 2. Nf3 {[%clk 0:03:01]}  d6 {[%clk 0:02:58]} 3. d4 {[%clk 0:03:01]}  cxd4 {[%clk 0:02:58]} 4. Nxd4 {[%clk 0:03:02]}  Nf6 {[%clk 0:02:59]} 5. Nc3 {[%clk 0:03:03]}  Nc6 {[%clk 0:02:59]} 6. Bg5 {[%clk 0:03:02]}  e6 {[%clk 0:02:59]} 7. Qd2 {[%clk 0:03:02]}  a6 {[%clk 0:02:58]} 8. O-O-O {[%clk 0:03:03]}  Bd7 {[%clk 0:02:59]} 9. Rg1 {[%clk 0:02:56]}  Be7 {[%clk 0:02:54]} 10. g4 {[%clk 0:02:52]}  Nxd4 {[%clk 0:02:31]} 11. Qxd4 {[%clk 0:02:51]}  h5 {[%clk 0:02:31]} 12. h3 {[%clk 0:02:44]}  hxg4 {[%clk 0:02:30]} 13. hxg4 {[%clk 0:02:44]}  Rc8 {[%clk 0:02:29]} 14. f4 {[%clk 0:02:35]}  Bc6 {[%clk 0:02:15]} 15. Be2 {[%clk 0:02:20]}  Qa5 {[%clk 0:02:08]} 16. Rh1 {[%clk 0:01:56]}  Rxh1 {[%clk 0:02:02]} 17. Rxh1 {[%clk 0:01:55]}  Kd7 {[%clk 0:02:00]} 18. Bf3 {[%clk 0:01:38]}  b5 {[%clk 0:01:31]} 19. a3 {[%clk 0:01:26]}  Bb7 {[%clk 0:01:29]} 20. Bxf6 {[%clk 0:00:53]}  gxf6 {[%clk 0:01:20]} 21. Be2 {[%clk 0:00:50]}  Qc7 {[%clk 0:01:16]} 22. Rh7 {[%clk 0:00:48]}  Ke8 {[%clk 0:01:14]} 23. g5 {[%clk 0:00:43]}  Qc5 {[%clk 0:01:10]} 24. Qxc5 {[%clk 0:00:22]}  Rxc5 {[%clk 0:01:11]} 25. gxf6 {[%clk 0:00:23]}  Bxf6 {[%clk 0:01:11]} 26. Bh5 {[%clk 0:00:22]}  Rc7 {[%clk 0:01:08]} 27. f5 {[%clk 0:00:11]}  Bxc3 {[%clk 0:01:01]} 28. bxc3 {[%clk 0:00:05]}  exf5 {[%clk 0:00:55]} 29. exf5 {[%clk 0:00:05]}  Be4 {[%clk 0:00:55]} 30. Rh6 {[%clk 0:00:05]}  Rxc3 {[%clk 0:00:52]} 31. Re6+ {[%clk 0:00:05]}  Kf8 {[%clk 0:00:48]} 32. Rxe4 {[%clk 0:00:06]}  Rc5 {[%clk 0:00:48]} 33. Bg4 {[%clk 0:00:05]}  Kg7 {[%clk 0:00:48]} 34. Rd4 {[%clk 0:00:05]}  Kf6 {[%clk 0:00:45]} 35. Rxd6+ {[%clk 0:00:05]}  Kg5 {[%clk 0:00:46]} 36. Bf3 {[%clk 0:00:03]}  Rc3 {[%clk 0:00:44]} 37. Rd3 {[%clk 0:00:02]}  Rxd3 {[%clk 0:00:42]} 38. cxd3 {[%clk 0:00:03]}  Kxf5 {[%clk 0:00:42]} 39. Bb7 {[%clk 0:00:04]}  a5 {[%clk 0:00:43]} 40. Bc6 {[%clk 0:00:04]}  b4 {[%clk 0:00:42]} 41. axb4 {[%clk 0:00:03]}  axb4 {[%clk 0:00:43]} 42. Kc2 {[%clk 0:00:04]}  Ke5 {[%clk 0:00:43]} 43. Kb3 {[%clk 0:00:02]}  f5 {[%clk 0:00:40]} 44. Kc4 {[%clk 0:00:02]}  f4 {[%clk 0:00:37]} 45. Bf3 {[%clk 0:00:02]}  b3 {[%clk 0:00:36]} 46. Kxb3 {[%clk 0:00:02]}  Kd4 {[%clk 0:00:37]} 47. Kc2 {[%clk 0:00:03]}  Ke3 {[%clk 0:00:37]} 48. Bg4 {[%clk 0:00:03]}  f3 {[%clk 0:00:37]} 49. Bxf3 {[%clk 0:00:03]}  Kxf3 {[%clk 0:00:37]} 50. Kc3 {[%clk 0:00:04]}  Kf4 {[%clk 0:00:37]} 51. Kc4 {[%clk 0:00:04]} 1-0

[Event "December 12 Early 2023"]
[Site "https://www.chess.com"]
[Date "2023.12.12"]
[Round "9"]
[White "Lysyj, Igor"]
[Black "Zhigalko, Sergei"]
[Result "0-1"]
[Board "12"]
[TimeControl "180+1"]
[WhiteFideId "4150120"]
[BlackFideId "13502956"]
[WhiteElo "2820"]
[BlackElo "2949"]
[WhiteTeam "FID"]
[BlackTeam "BLR"]
[WhiteClock "0:00:00"]
[BlackClock "0:00:07"]

1. d4 {[%clk 0:02:59]}  Nf6 {[%clk 0:03:00]} 2. c4 {[%clk 0:02:58]}  e6 {[%clk 0:03:00]} 3. Nc3 {[%clk 0:02:56]}  Bb4 {[%clk 0:03:00]} 4. e3 {[%clk 0:02:56]}  O-O {[%clk 0:02:59]} 5. Bd3 {[%clk 0:02:56]}  d5 {[%clk 0:02:58]} 6. a3 {[%clk 0:02:56]}  Bxc3+ {[%clk 0:02:53]} 7. bxc3 {[%clk 0:02:55]}  c5 {[%clk 0:02:52]} 8. cxd5 {[%clk 0:02:53]}  exd5 {[%clk 0:02:52]} 9. Ne2 {[%clk 0:02:52]}  Nc6 {[%clk 0:02:48]} 10. O-O {[%clk 0:02:50]}  Bg4 {[%clk 0:02:47]} 11. f3 {[%clk 0:02:48]}  Bh5 {[%clk 0:02:47]} 12. Nf4 {[%clk 0:02:45]}  Bg6 {[%clk 0:02:47]} 13. Nxg6 {[%clk 0:02:44]}  hxg6 {[%clk 0:02:48]} 14. Bd2 {[%clk 0:02:34]}  Re8 {[%clk 0:02:48]} 15. a4 {[%clk 0:02:33]}  Rc8 {[%clk 0:02:46]} 16. Qb1 {[%clk 0:02:17]}  Na5 {[%clk 0:02:37]} 17. Qb5 {[%clk 0:02:12]}  b6 {[%clk 0:02:24]} 18. Rac1 {[%clk 0:02:08]}  Qd6 {[%clk 0:02:18]} 19. Rfe1 {[%clk 0:02:04]}  Re7 {[%clk 0:02:17]} 20. Qb1 {[%clk 0:01:51]}  Qd8 {[%clk 0:01:39]} 21. Ba6 {[%clk 0:01:47]}  Rcc7 {[%clk 0:01:39]} 22. Re2 {[%clk 0:01:44]}  Qe8 {[%clk 0:01:18]} 23. Bb5 {[%clk 0:01:42]}  Qc8 {[%clk 0:01:18]} 24. Rd1 {[%clk 0:01:26]}  c4 {[%clk 0:01:13]} 25. e4 {[%clk 0:01:15]}  a6 {[%clk 0:01:13]} 26. e5 {[%clk 0:01:07]}  axb5 {[%clk 0:01:13]} 27. Qxb5 {[%clk 0:01:06]}  Qb7 {[%clk 0:00:49]} 28. Bf4 {[%clk 0:00:13]}  Rc8 {[%clk 0:00:36]} 29. Rde1 {[%clk 0:00:12]}  Ne8 {[%clk 0:00:31]} 30. e6 {[%clk 0:00:12]}  f6 {[%clk 0:00:31]} 31. Qb1 {[%clk 0:00:11]}  f5 {[%clk 0:00:20]} 32. Bg5 {[%clk 0:00:10]}  Nf6 {[%clk 0:00:20]} 33. Re5 {[%clk 0:00:10]}  Rce8 {[%clk 0:00:15]} 34. Qb5 {[%clk 0:00:08]}  Nc6 {[%clk 0:00:13]} 35. R5e2 {[%clk 0:00:04]}  Na7 {[%clk 0:00:10]} 36. Qb4 {[%clk 0:00:04]}  Qc6 {[%clk 0:00:10]} 37. Re5 {[%clk 0:00:01]}  Rxe6 {[%clk 0:00:08]} 38. h4 {[%clk 0:00:01]}  Rxe5 {[%clk 0:00:07]} 39. dxe5 {[%clk 0:00:01]}  Nh7 {[%clk 0:00:07]} 40. Bd2 {[%clk 0:00:01]}  Nc8 {[%clk 0:00:08]} 41. a5 {[%clk 0:00:01]}  bxa5 {[%clk 0:00:08]} 42. Qxa5 {[%clk 0:00:01]}  Nf8 {[%clk 0:00:08]} 43. Be3 {[%clk 0:00:00]}  Rxe5 {[%clk 0:00:07]} 0-1